fUSD/lending_fUSD_20241123
["ID","MTS","AMOUNT","RATE_DAILY","PERIOD"]
[343151061,1732383060402,-462.27047028,0.00054794,120]
[343151062,1732383060412,-531.95,0.00054794,120]
[343151063,1732383060422,-531.95,0.00054794,120]
[343151064,1732383060432,-531.95,0.00054794,120]
[343151065,1732383060442,-531.95,0.00054794,120]
[343151066,1732383060451,-531.95,0.00054794,120]
[343151067,1732383060461,-531.95,0.00054794,120]
[343151068,1732383060471,-531.95,0.00054799,120]
[343151069,1732383060481,-335.58,0.00054999,120]
[343151070,1732383060491,-500.0,0.00054999,120]
[343151071,1732383060501,-500.0,0.00054999,120]
[343151072,1732383060511,-500.0,0.00054999,120]
[343151073,1732383060521,-500.0,0.00054999,120]
[343151074,1732383060531,-500.0,0.00054999,120]
[343151075,1732383060541,-317.18816453,0.00054999,120]
[343151076,1732383060551,-150.20878304,0.0005589,120]
[343151077,1732383060561,-150.20878304,0.0005589,120]
[343151078,1732383060571,-150.20878304,0.0005589,120]
[343151079,1732383060581,-150.20878304,0.0005589,120]
[343151080,1732383060591,-150.20878304,0.0005589,120]
[343151081,1732383060606,-150.20878304,0.0005589,120]
[343151082,1732383060615,-150.20878304,0.0005589,120]
[343151083,1732383060626,-150.20878304,0.0005589,120]
[343151084,1732383060635,-150.2,0.0005589,120]
[343151085,1732383060645,-1039.3,0.00055989,120]
[343151086,1732383060655,-1039.41660138,0.00055989,120]
[343151087,1732383060665,-4810.97099917,0.0005599,60]
[343151088,1732383060677,-5709.75732606,0.0005599,60]
[343151089,1732383060688,-3893.23267411,0.0005599,60]
[343151090,1732383060704,-629.0,0.00054087,120]
[343151091,1732383060714,-802.339,0.0005599,60]
[343151092,1732383060724,-55678.34183268,0.0005599,60]
[343151093,1732383060739,-531.95,0.00054999,120]
[343151094,1732383060749,-3691.88673092,0.0005599,60]
[343151095,1732383060893,-425.52014,0.00054794,120]
[343151096,1732383060905,-74.47986,0.00054794,120]
[343151097,1732383060915,-500.0,0.00054794,120]
[343151098,1732383060928,-500.0,0.00054794,120]
[343151099,1732383060939,-500.0,0.00054794,120]
[343151100,1732383060948,-531.95,0.00054999,120]
[343151101,1732383060959,-531.95,0.00054999,120]
[343151102,1732383060969,-531.95,0.00054999,120]
[343151103,1732383060978,-531.95,0.00054999,120]
[343151104,1732383060991,-531.95,0.00054999,120]
[343151105,1732383061001,-531.95,0.00054999,120]
[343151106,1732383061011,-531.95,0.00054999,120]
[343151107,1732383061020,-531.95,0.00054999,120]
[343151108,1732383061030,-46274.67964,0.0005599,60]
[343151109,1732383061046,-531.95,0.00054999,120]
[343151110,1732383061055,-96967.27815729,0.0005599,60]
[343151111,1732383061066,-9761.985,0.0005599,60]
[343151112,1732383061100,-26901.98702718,0.0005599,60]
[343151113,1732383061114,-2194.92416749,0.0005599,60]
[343151114,1732383061156,-10504.71203579,0.0005599,60]
[343151115,1732383061168,-275.33303984,0.0005599,60]
[343151122,1732383185445,214.64,0.00041096,2]
[343151123,1732383189068,213.23025,0.000374,2]
[343151124,1732383223548,283.0,0.000317,2]
[343151127,1732383525540,498.0,0.000317,2]
[343151128,1732383733111,250.0,0.00031,2]
[343151129,1732383734205,300.0,0.00033,2]
[343151130,1732383735291,350.0,0.00035,2]
[343151131,1732383736631,400.0,0.00037,2]
[343151132,1732383736665,169.618,0.00038,2]
[343151137,1732383902741,150.0,0.00034548,10]
[343151138,1732383916519,169.06,0.00038629,2]
[343151139,1732383931032,8567.19435602,0.00043,30]
[343151143,1732384046386,183.59,0.00041096,2]
[343151168,1732384231789,-3824.1073242,0.00043757,2]
[343151169,1732384231801,-166.7839895,0.00043857,2]
[343151170,1732384231811,-213.23025,0.00043957,2]
[343151171,1732384231821,-214.64,0.00046143,2]
[343151172,1732384231831,-183.59,0.00046143,2]
[343151173,1732384231840,-1124.29,0.00046408,2]
[343151174,1732384231850,-150.26,0.00048055,2]
[343151175,1732384231859,-250.0,0.00048092,120]
[343151176,1732384231869,-300.0,0.00048112,2]
[343151177,1732384231878,-166.6,0.0004814,2]
[343151178,1732384231889,-200.0,0.00048149,2]
[343151179,1732384231898,-1376.24,0.0004817,2]
[343151180,1732384231907,-1037.59,0.00048191,2]
[343151181,1732384231917,-500.0,0.0004823,2]
[343151182,1732384231927,-1000.0,0.00048231,2]
[343151183,1732384231936,-1597.91343507,0.0004824,2]
[343151184,1732384231949,-2959.22873806,0.0004824,2]
[343151185,1732384231958,-910.21823345,0.00048248,9]
[343151186,1732384231970,-89.78176655,0.00048248,9]
[343151187,1732384231979,-150.0,0.00048249,4]
[343151188,1732384231989,-2460.89985224,0.0004825,2]
[343151189,1732384232000,-1686.41644348,0.0004825,2]
[343151190,1732384232012,-2152.52238504,0.0004825,2]
[343151191,1732384232023,-395.76506815,0.0004825,2]
[343151192,1732384232034,-400.0,0.0004825,2]
[343151193,1732384235302,-4135.7767,0.0004825,2]
[343151194,1732384235317,-12668.61955109,0.0004825,2]
[343151195,1732384235327,-4000.66,0.0004825,2]
[343151196,1732384235339,-334.41,0.00048286,30]
[343151197,1732384235349,-204.97,0.00048286,2]
[343151198,1732384235358,-6201.77,0.00048286,2]
[343151199,1732384235369,-169.06,0.00048286,2]
[343151200,1732384235380,-250.0,0.00048311,120]
[343151201,1732384235390,-248.0,0.00048336,2]
[343151202,1732384235400,-5823.35,0.00048355,2]
[343151203,1732384235409,-1000.0,0.00048355,2]
[343151204,1732384235419,-150.0,0.00048355,2]
[343151205,1732384235429,-1000.0,0.00048392,2]
[343151206,1732384235438,-370.6,0.00048392,2]
[343151207,1732384235448,-200.0,0.00048413,2]
[343151208,1732384235458,-404.98,0.00048413,83]
[343151209,1732384235468,-529.54,0.00048424,2]
[343151210,1732384235477,-158.58,0.00048448,120]
[343151211,1732384235487,-831.51,0.00048513,2]
[343151212,1732384235496,-250.0,0.00048518,120]
[343151213,1732384235506,-1350.09,0.00048542,120]
[343151214,1732384235516,-166.33,0.00048599,2]
[343151215,1732384235525,-161.83,0.00048621,120]
[343151216,1732384235535,-2185.98,0.00048644,2]
[343151217,1732384235544,-243.59,0.00048661,2]
[343151218,1732384235555,-361.52,0.00048671,120]
[343151219,1732384235564,-1124.29,0.00048672,2]
[343151220,1732384235573,-2335.16,0.00049069,2]
[343151221,1732384235582,-153.08,0.00049388,2]
[343151223,1732384235591,-153.08,0.00049404,2]
[343151225,1732384235600,-153.08,0.00049421,2]
[343151227,1732384235609,-153.08,0.00049437,2]
[343151228,1732384235617,-153.08,0.00049454,2]
[343151230,1732384235627,-153.08,0.0004947,2]
[343151232,1732384235636,-153.08,0.00049487,2]
[343151233,1732384235646,-153.08,0.00049503,2]
[343151234,1732384235655,-153.08,0.0004952,2]
[343151236,1732384235665,-153.08,0.00049536,2]
[343151238,1732384235674,-153.08,0.00049553,2]
[343151240,1732384235683,-153.08,0.00049569,2]
[343151242,1732384235693,-150.0,0.00049585,120]
[343151244,1732384235702,-153.08,0.00049586,2]
[343151246,1732384235711,-153.08,0.00049602,2]
[343151248,1732384235720,-153.08,0.00049619,2]
[343151249,1732384235730,-153.08,0.00049635,2]
[343151251,1732384235739,-215.85510884,0.000497,15]
[343151253,1732384235748,-6065.55035872,0.0004979,120]
[343151256,1732384235760,-18438.82173028,0.0004979,120]
[343151257,1732384235769,-3500.49598201,0.00049799,2]
[343151259,1732384235778,-5317.7164,0.000498,2]
[343151261,1732384235787,-658.6561,0.000498,60]
[343151263,1732384235796,-157.3949,0.000498,2]
[343151265,1732384235806,-220.0,0.000498,2]
[343151267,1732384235816,-445.6322,0.000498,2]
[343151269,1732384235826,-2474.1112,0.000498,2]
[343151271,1732384235835,-662.2449,0.000498,2]
[343151272,1732384235844,-161.9788,0.000498,2]
[343151274,1732384235853,-20281.742,0.000498,2]
[343151276,1732384235862,-165.96632872,0.000498,26]
[343151278,1732384235872,-1667.1605,0.000498,2]
[343151280,1732384235881,-166.94503016,0.000498,26]
[343151282,1732384235889,-2021.0115,0.000498,2]
[343151284,1732384235898,-490.36584043,0.000498,15]
[343151286,1732384235908,-600.0,0.000498,18]
[343151288,1732384235917,-2500.0,0.000498,2]
[343151290,1732384235927,-179.82352143,0.000498,28]
[343151291,1732384235936,-315.17682469,0.000498,2]
[343151292,1732384235945,-165.08,0.00049805,2]
[343151293,1732384235955,-161.88812829,0.00049873,7]
[343151294,1732384235963,-432.90379701,0.00049873,2]
[343151295,1732384235973,-500.0,0.00049899,31]
[343151296,1732384235982,-360.80166103,0.00049899,120]
[343151297,1732384235991,-545.76121958,0.00049899,31]
[343151298,1732384236000,-500.0,0.00049899,31]
[343151299,1732384236009,-248.43239092,0.00049899,31]
[343151300,1732384236019,-37510.3252711,0.000499,2]
[343151305,1732384237642,-7760.7922753,0.000499,2]
[343151306,1732384237677,-748.51535613,0.000499,2]
[343151307,1732384237849,-104468.0064957,0.000499,2]
[343151308,1732384237861,-348.48290493,0.000499,2]
[343151309,1732384237873,-5146.22898121,0.000499,2]
[343151310,1732384237884,-1146.93839058,0.000499,2]
[343151311,1732384237899,-5279.78074274,0.000499,2]
[343151312,1732384237910,-604.38321807,0.000499,2]
[343151313,1732384237983,-554992.20836424,0.000499,2]
[343151314,1732384237993,-1000.0,0.000499,2]
[343151315,1732384238004,-500.0,0.000499,2]
[343151316,1732384238014,-37934.2973,0.000499,2]
[343151317,1732384238023,-161924.6539,0.000499,2]
[343151318,1732384238033,-100000.0,0.000499,2]
[343151319,1732384238043,-9182.37019107,0.000499,30]
[343151320,1732384238053,-393.50240358,0.000499,30]
[343151321,1732384238062,-1300.0,0.000499,18]
[343151322,1732384238072,-5000.0,0.000499,120]
[343151323,1732384238082,-150.26,0.00049931,2]
[343151324,1732384238092,-391.38089965,0.0005,68]
[343151325,1732384238101,-243.99803398,0.00050108,22]
[343151326,1732384238111,-1000.0,0.00050144,2]
[343151327,1732384238120,-215.8551088,0.00050388,15]
[343151328,1732384238129,-490.36584038,0.00050477,15]
[343151330,1732384238138,-213.23025,0.00050514,120]
[343151331,1732384238148,-1037.59,0.000506,2]
[343151332,1732384238158,-179.82352138,0.0005067,28]
[343151334,1732384238168,-1124.29,0.00050936,2]
[343151335,1732384238177,-150.0,0.00050954,120]
[343151337,1732384238186,-215.8551088,0.00051076,15]
[343151339,1732384238196,-2721.0,0.000511,120]
[343151341,1732384238205,-150.0,0.00051109,2]
[343151343,1732384238215,-11768.44950994,0.00051109,120]
[343151345,1732384238225,-490.36584038,0.00051153,15]
[343151347,1732384238235,-214.64,0.0005119,2]
[343151349,1732384238245,-183.59,0.0005119,2]
[343151351,1732384238255,-179.82352138,0.0005154,28]
[343151353,1732384238265,-215.8551088,0.00051763,15]
[343151355,1732384238274,-150.26,0.00051807,2]
[343151356,1732384238284,-165.96632871,0.0005183,28]
[343151358,1732384238294,-490.36584038,0.0005183,15]
[343151360,1732384238307,-315.17682467,0.0005183,2]
[343151362,1732384238318,-165.08,0.0005186,2]
[343151364,1732384238328,-1000.0,0.00051933,2]
[343151366,1732384238338,-179.82352138,0.0005241,28]
[343151368,1732384238348,-215.8551088,0.00052451,15]
[343151370,1732384238360,-150.0,0.00052461,2]
[343151372,1732384238370,-490.36584038,0.00052507,15]
[343151374,1732384238382,-175.0,0.00053,120]
[343151376,1732384238393,-1037.59,0.0005301,2]
[343151377,1732384238402,-215.8551088,0.00053139,15]
[343151379,1732384238412,-490.36584038,0.00053183,15]
[343151380,1732384238421,-1124.29,0.000532,2]
[343151381,1732384238430,-179.82352138,0.0005328,28]
[343151382,1732384238440,-166.33,0.00053459,2]
[343151383,1732384238449,-150.26,0.00053683,2]
[343151384,1732384238459,-1000.0,0.00053723,2]
[343151385,1732384238469,-215.8551088,0.00053827,15]
[343151386,1732384238478,-165.96632871,0.0005386,31]
[343151387,1732384238488,-490.36584038,0.0005386,15]
[343151388,1732384238497,-315.17682467,0.0005386,2]
[343151389,1732384238507,-165.08,0.00053915,2]
[343151390,1732384238517,-20000.0,0.00054,120]
[343151391,1732384238527,-151.8,0.00054,120]
[343151392,1732384238536,-151.8,0.00054,120]
[343151393,1732384238546,-151.8,0.00054,120]
[343151394,1732384238557,-179.82352138,0.0005415,28]
[343151395,1732384238566,-422.84605013,0.00054165,120]
[343151396,1732384238575,-2488.0,0.000542,10]
[343151397,1732384238584,-1000.0,0.0005426,120]
[343151398,1732384238594,-422.84605013,0.00054332,120]
[343151399,1732384238604,-150.0,0.0005441,7]
[343151400,1732384238614,-215.8551088,0.00054514,15]
[343151401,1732384238623,-150.0,0.00054518,7]
[343151402,1732384238632,-490.36584038,0.00054537,15]
[343151403,1732384238641,-150.0,0.00054559,7]
[343151404,1732384238651,-1257.0,0.00054576,120]
[343151405,1732384238661,-150.0,0.00054576,120]
[343151406,1732384238671,-629.0,0.00054576,120]
[343151407,1732384238680,-1996.0,0.00054576,120]
[343151408,1732384238690,-561.0,0.00054576,120]
[343151409,1732384238700,-1928.0,0.00054576,120]
[343151410,1732384238710,-1261.0,0.00054576,120]
[343151411,1732384238720,-3750.0,0.00054576,120]
[343151412,1732384238729,-815.0,0.00054576,2]
[343151413,1732384238738,-3517.0,0.00054576,120]
[343151414,1732384238748,-918.0,0.00054576,120]
[343151415,1732384238757,-13666.0,0.00054576,120]
[343151416,1732384238766,-5944.0,0.00054576,120]
[343151417,1732384238775,-150.0,0.00054576,2]
[343151418,1732384238784,-150.0,0.00054576,120]
[343151419,1732384238793,-1094.0,0.00054576,120]
[343151420,1732384238804,-493.222,0.0005461,120]
[343151421,1732384238814,-150.0,0.00054619,7]
[343151422,1732384238824,-150.0,0.00054634,7]
[343151423,1732384238833,-433.48,0.00054641,30]
[343151424,1732384238843,-150.0,0.00054656,7]
[343151425,1732384238852,-150.0,0.00054675,7]
[343151426,1732384238862,-846.76175389,0.00054694,2]
[343151427,1732384238871,-150.0,0.00054717,7]
[343151428,1732384238881,-422.84605013,0.00054734,120]
[343151429,1732384238891,-150.0,0.00054747,7]
[343151430,1732384238900,-361.52,0.00054755,120]
[343151431,1732384238910,-150.0,0.00054763,7]
[343151432,1732384238920,-158.79453722,0.00054773,2]
[343151433,1732384238929,-151.8,0.00054784,120]
[343151434,1732384238939,-166.08,0.00054788,30]
[343151435,1732384238949,-889.84152843,0.00054793,120]
[343151436,1732384238959,-501.73406337,0.00054794,120]
[343151437,1732384238969,-500.0,0.00054794,120]
[343151438,1732384238979,-500.0,0.00054794,120]
[343151439,1732384238988,-500.0,0.00054794,120]
[343151440,1732384238998,-500.0,0.00054794,120]
[343151441,1732384239007,-500.0,0.00054794,120]
[343151442,1732384239017,-500.0,0.00054794,120]
[343151443,1732384239026,-500.0,0.00054794,120]
[343151444,1732384239035,-500.0,0.00054794,120]
[343151445,1732384239045,-500.0,0.00054794,120]
[343151446,1732384239056,-500.0,0.00054794,120]
[343151447,1732384239066,-500.0,0.00054794,120]
[343151448,1732384239076,-500.0,0.00054794,120]
[343151449,1732384239085,-500.0,0.00054794,120]
[343151450,1732384239095,-500.0,0.00054794,120]
[343151451,1732384239104,-500.0,0.00054794,120]
[343151452,1732384239113,-421.22098905,0.00054794,120]
[343151453,1732384239123,-500.0,0.00054794,120]
[343151454,1732384239133,-500.0,0.00054794,120]
[343151455,1732384239143,-500.0,0.00054794,120]
[343151456,1732384239153,-500.0,0.00054794,120]
[343151457,1732384239162,-500.0,0.00054794,120]
[343151458,1732384239172,-500.0,0.00054794,120]
[343151459,1732384239181,-500.0,0.00054794,120]
[343151460,1732384239191,-500.0,0.00054794,120]
[343151461,1732384239204,-500.0,0.00054794,120]
[343151462,1732384239213,-500.0,0.00054794,120]
[343151463,1732384239223,-500.0,0.00054794,120]
[343151464,1732384239233,-500.0,0.00054794,120]
[343151465,1732384239242,-687.94,0.00054794,120]
[343151466,1732384239252,-687.94,0.00054794,120]
[343151467,1732384239262,-687.94,0.00054794,120]
[343151468,1732384239271,-687.94,0.00054794,120]
[343151469,1732384239281,-687.94,0.00054794,120]
[343151470,1732384239290,-687.94,0.00054794,120]
[343151471,1732384239304,-500.0,0.00054794,120]
[343151472,1732384239316,-200.31479226,0.00054794,120]
[343151473,1732384239326,-602.5926268,0.00054794,120]
[343151474,1732384239336,-500.0,0.00054794,120]
[343151475,1732384239347,-631.06692708,0.00054794,120]
[343151476,1732384239356,-500.0,0.00054794,120]
[343151477,1732384239367,-500.0,0.00054794,120]
[343151478,1732384239378,-500.0,0.00054794,120]
[343151479,1732384239388,-500.0,0.00054794,120]
[343151480,1732384239398,-500.0,0.00054794,120]
[343151481,1732384239408,-537.36291567,0.00054794,120]
[343151482,1732384239418,-500.0,0.00054794,120]
[343151483,1732384239427,-500.0,0.00054794,120]
[343151484,1732384239437,-500.0,0.00054794,120]
[343151485,1732384239446,-500.0,0.00054794,120]
[343151486,1732384239455,-500.0,0.00054794,120]
[343151487,1732384239465,-500.0,0.00054794,120]
[343151488,1732384239474,-500.0,0.00054794,120]
[343151489,1732384239483,-500.0,0.00054794,120]
[343151490,1732384239492,-500.0,0.00054794,120]
[343151491,1732384239502,-500.0,0.00054794,120]
[343151493,1732384239511,-500.0,0.00054794,120]
[343151494,1732384239521,-500.0,0.00054794,120]
[343151496,1732384239530,-500.0,0.00054794,120]
[343151499,1732384239540,-500.0,0.00054794,120]
[343151500,1732384239549,-500.0,0.00054794,120]
[343151501,1732384239561,-500.0,0.00054794,120]
[343151502,1732384239570,-262.44078633,0.00054794,120]
[343151503,1732384239579,-527.96533694,0.00054794,120]
[343151504,1732384239589,-500.0,0.00054794,30]
[343151505,1732384239598,-500.0,0.00054794,30]
[343151506,1732384239607,-500.0,0.00054794,30]
[343151507,1732384239616,-500.0,0.00054794,30]
[343151508,1732384239625,-504.54564395,0.00054794,30]
[343151509,1732384239635,-500.0,0.00054794,120]
[343151510,1732384239643,-500.0,0.00054794,120]
[343151511,1732384239652,-500.0,0.00054794,120]
[343151512,1732384239662,-500.0,0.00054794,120]
[343151513,1732384239671,-500.0,0.00054794,120]
[343151514,1732384239680,-500.0,0.00054794,120]
[343151515,1732384239690,-500.0,0.00054794,120]
[343151516,1732384239699,-500.0,0.00054794,120]
[343151517,1732384239709,-157.059439,0.00054794,120]
[343151518,1732384239719,-212.78,0.00054794,120]
[343151519,1732384239728,-500.0,0.00054794,120]
[343151520,1732384239738,-500.0,0.00054794,120]
[343151521,1732384239747,-500.0,0.00054794,120]
[343151522,1732384239758,-500.0,0.00054794,120]
[343151523,1732384239767,-500.0,0.00054794,120]
[343151524,1732384239776,-500.0,0.00054794,120]
[343151525,1732384239786,-500.0,0.00054794,120]
[343151526,1732384239795,-500.0,0.00054794,120]
[343151527,1732384239806,-538.03339311,0.00054794,120]
[343151528,1732384239816,-500.0,0.00054794,120]
[343151529,1732384239826,-320.31442265,0.00054794,120]
[343151530,1732384239835,-500.0,0.00054794,120]
[343151531,1732384239844,-453.7,0.00054794,120]
[343151532,1732384239854,-500.0,0.00054794,120]
[343151533,1732384239863,-500.0,0.00054794,120]
[343151534,1732384239872,-500.0,0.00054794,120]
[343151535,1732384239881,-500.0,0.00054794,120]
[343151536,1732384239891,-500.0,0.00054794,120]
[343151537,1732384239900,-500.0,0.00054794,120]
[343151538,1732384239910,-500.0,0.00054794,120]
[343151539,1732384239919,-500.0,0.00054794,120]
[343151540,1732384239934,-500.0,0.00054794,120]
[343151541,1732384239943,-500.0,0.00054794,120]
[343151542,1732384239952,-500.0,0.00054794,120]
[343151543,1732384239963,-500.0,0.00054794,120]
[343151544,1732384239972,-500.0,0.00054794,120]
[343151545,1732384239981,-500.0,0.00054794,120]
[343151546,1732384239990,-500.0,0.00054794,120]
[343151547,1732384239999,-500.0,0.00054794,120]
[343151548,1732384240008,-500.0,0.00054794,120]
[343151549,1732384240017,-500.0,0.00054794,120]
[343151550,1732384240027,-500.0,0.00054794,120]
[343151551,1732384240037,-500.0,0.00054794,120]
[343151552,1732384240047,-500.0,0.00054794,120]
[343151553,1732384240059,-500.0,0.00054794,120]
[343151554,1732384240068,-500.0,0.00054794,120]
[343151555,1732384240078,-500.0,0.00054794,120]
[343151556,1732384240088,-500.0,0.00054794,120]
[343151557,1732384240098,-500.0,0.00054794,120]
[343151558,1732384240108,-500.0,0.00054794,120]
[343151559,1732384240118,-200.42412198,0.00054794,120]
[343151560,1732384240127,-538.83243024,0.00054794,120]
[343151561,1732384240136,-500.0,0.00054794,120]
[343151562,1732384240146,-500.0,0.00054794,120]
[343151563,1732384240155,-500.0,0.00054794,120]
[343151564,1732384240165,-500.0,0.00054794,120]
[343151565,1732384240174,-500.0,0.00054794,120]
[343151566,1732384240183,-500.0,0.00054794,120]
[343151567,1732384240193,-500.0,0.00054794,120]
[343151568,1732384240202,-297.48596265,0.00054794,120]
[343151569,1732384240212,-500.0,0.00054794,120]
[343151570,1732384240221,-500.0,0.00054794,120]
[343151571,1732384240230,-500.0,0.00054794,120]
[343151572,1732384240239,-500.0,0.00054794,120]
[343151573,1732384240248,-500.0,0.00054794,120]
[343151574,1732384240258,-500.0,0.00054794,120]
[343151575,1732384240268,-792.92,0.00054794,120]
[343151576,1732384240278,-792.92,0.00054794,120]
[343151577,1732384240287,-792.92,0.00054794,120]
[343151578,1732384240298,-792.92,0.00054794,120]
[343151579,1732384240311,-792.92,0.00054794,120]
[343151580,1732384240320,-792.92,0.00054794,120]
[343151581,1732384240330,-792.92,0.00054794,120]
[343151582,1732384240340,-500.0,0.00054794,120]
[343151583,1732384240349,-500.0,0.00054794,120]
[343151584,1732384240359,-500.0,0.00054794,120]
[343151585,1732384240514,-876.67,0.00054794,120]
[343151586,1732384240524,-876.67,0.00054794,120]
[343151587,1732384240533,-876.67,0.00054794,120]
[343151588,1732384240543,-876.67,0.00054794,120]
[343151589,1732384240552,-876.67,0.00054794,120]
[343151590,1732384240563,-876.67,0.00054794,120]
[343151591,1732384240572,-500.0,0.00054794,120]
[343151592,1732384240581,-500.0,0.00054794,120]
[343151593,1732384240590,-500.0,0.00054794,120]
[343151594,1732384240599,-500.0,0.00054794,120]
[343151595,1732384240608,-500.0,0.00054794,120]
[343151596,1732384240617,-500.0,0.00054794,120]
[343151597,1732384240627,-500.0,0.00054794,120]
[343151598,1732384240636,-537.04692063,0.00054794,120]
[343151599,1732384240645,-500.0,0.00054794,120]
[343151600,1732384240654,-500.0,0.00054794,120]
[343151601,1732384240663,-500.0,0.00054794,120]
[343151602,1732384240673,-500.0,0.00054794,120]
[343151603,1732384240682,-230.93,0.00054794,120]
[343151604,1732384240692,-500.0,0.00054794,120]
[343151605,1732384240701,-558.0,0.00054794,120]
[343151606,1732384240710,-500.0,0.00054794,120]
[343151607,1732384240719,-500.0,0.00054794,120]
[343151608,1732384240727,-558.0,0.00054794,120]
[343151609,1732384240737,-558.0,0.00054794,120]
[343151610,1732384240747,-558.0,0.00054794,120]
[343151611,1732384240755,-558.0,0.00054794,120]
[343151612,1732384240765,-558.0,0.00054794,120]
[343151613,1732384240774,-558.0,0.00054794,120]
[343151614,1732384240783,-500.0,0.00054794,120]
[343151615,1732384240792,-500.0,0.00054794,120]
[343151616,1732384240801,-500.0,0.00054794,120]
[343151617,1732384240813,-500.0,0.00054794,120]
[343151618,1732384240822,-500.0,0.00054794,120]
[343151619,1732384240831,-1275.63,0.00054794,120]
[343151620,1732384240842,-500.0,0.00054794,120]
[343151621,1732384240851,-1275.63,0.00054794,120]
[343151622,1732384240860,-500.0,0.00054794,120]
[343151623,1732384240869,-1275.63,0.00054794,120]
[343151624,1732384240878,-500.0,0.00054794,120]
[343151625,1732384240887,-1275.63,0.00054794,120]
[343151626,1732384240896,-500.0,0.00054794,120]
[343151627,1732384240906,-1275.63,0.00054794,120]
[343151628,1732384240915,-500.0,0.00054794,120]
[343151629,1732384240925,-1275.63,0.00054794,120]
[343151630,1732384240934,-500.0,0.00054794,120]
[343151631,1732384240943,-586.71359803,0.00054794,120]
[343151632,1732384240953,-744.32,0.00054794,120]
[343151633,1732384240962,-744.32,0.00054794,120]
[343151634,1732384240971,-744.32,0.00054794,120]
[343151635,1732384240982,-744.32,0.00054794,120]
[343151636,1732384240991,-744.32,0.00054794,120]
[343151637,1732384241002,-744.32,0.00054794,120]
[343151638,1732384241011,-500.0,0.00054794,120]
[343151639,1732384241020,-884.33,0.00054794,120]
[343151640,1732384241029,-884.33,0.00054794,120]
[343151641,1732384241039,-884.33,0.00054794,120]
[343151642,1732384241048,-884.33,0.00054794,120]
[343151643,1732384241059,-884.33,0.00054794,120]
[343151644,1732384241069,-884.33,0.00054794,120]
[343151645,1732384241078,-884.33,0.00054794,120]
[343151646,1732384241087,-543.33,0.00054794,120]
[343151647,1732384241097,-500.0,0.00054794,120]
[343151648,1732384241106,-500.0,0.00054794,120]
[343151649,1732384241116,-500.0,0.00054794,120]
[343151650,1732384241125,-500.0,0.00054794,120]
[343151651,1732384241134,-500.0,0.00054794,120]
[343151652,1732384241143,-527.41452292,0.00054794,120]
[343151653,1732384241153,-500.0,0.00054794,120]
[343151654,1732384241162,-935.79,0.00054794,120]
[343151655,1732384241172,-935.79,0.00054794,120]
[343151656,1732384241181,-500.0,0.00054794,120]
[343151657,1732384241190,-935.79,0.00054794,120]
[343151658,1732384241199,-500.0,0.00054794,120]
[343151659,1732384241208,-935.79,0.00054794,120]
[343151660,1732384241218,-935.79,0.00054794,120]
[343151661,1732384241227,-935.79,0.00054794,120]
[343151662,1732384241237,-935.79,0.00054794,120]